fUSD/lending_fUSD_20251109
["ID","MTS","AMOUNT","RATE_DAILY","PERIOD"]
[393429871,1762651347312,-450.0,0.00016746,2]
[393429872,1762651347338,-500.0,0.00016746,2]
[393429873,1762651347360,-500.0,0.00016746,2]
[393429874,1762651347381,-548.26030548,0.00016746,2]
[393429875,1762651347404,-500.0,0.00016746,2]
[393429876,1762651347429,-500.0,0.00016746,2]
[393429877,1762651347453,-500.0,0.00016746,2]
[393429878,1762651347477,-500.0,0.00016746,2]
[393429879,1762651347500,-500.0,0.00016746,2]
[393429880,1762651347524,-500.0,0.00016746,2]
[393429881,1762651347552,-323.44513092,0.00016746,2]
[393429882,1762651347573,-300.0,0.00016746,2]
[393429883,1762651347596,-300.0,0.00016747,2]
[393429884,1762651347617,-950.0,0.00016747,2]
[393429885,1762651347639,-33661.5245373,0.00016747,2]
[393429886,1762651347660,-2000.0000001,0.00016747,2]
[393429887,1762651347681,-1345.2552678,0.00016747,2]
[393429888,1762651347703,-35795.42483494,0.00016748,2]
[393429889,1762651347725,-274.84924235,0.00016748,2]
[393429890,1762651347748,-31477.05847422,0.00016749,2]
[393429891,1762651347774,-257.23129702,0.00016765,2]
[393429892,1762651347797,-700.0,0.000168,6]
[393429893,1762651347819,-150.0,0.000168,6]
[393429894,1762651347841,-857.57011612,0.0001682,2]
[393429895,1762651347863,-247.24191956,0.00016827,2]
[393429896,1762651347886,-155.90173208,0.00016853,7]
[393429897,1762651347909,-1500.0,0.000169,6]
[393429898,1762651347935,-150.0,0.00016937,6]
[393429899,1762651347957,-554.0,0.00016959,2]
[393429900,1762651347985,-250.0,0.00017,2]
[393429901,1762651348010,-184.75,0.00017,2]
[393429902,1762651348032,-168.34,0.00017,2]
[393429903,1762651348055,-1205.93,0.00017,2]
[393429904,1762651348077,-312.6,0.00017,2]
[393429905,1762651348099,-1395.08,0.00017,2]
[393429906,1762651348120,-153.40612455,0.00017,2]
[393429907,1762651348142,-150.0,0.00017025,2]
[393429908,1762651348164,-150.0,0.00017025,2]
[393429909,1762651348187,-500.0,0.00017025,2]
[393429910,1762651348209,-150.0,0.00017025,2]
[393429911,1762651348234,-150.0,0.00017025,2]
[393429912,1762651348256,-250.0,0.00017025,2]
[393429913,1762651348278,-150.0,0.00017025,2]
[393429914,1762651348300,-500.0,0.00017025,2]
[393429915,1762651348322,-500.0,0.00017025,2]
[393429916,1762651348346,-150.0,0.00017025,2]
[393429917,1762651348371,-500.0,0.00017025,2]
[393429918,1762651348397,-848.0,0.00017025,2]
[393429919,1762651348423,-500.0,0.00017025,2]
[393429920,1762651348446,-813.0,0.00017025,2]
[393429921,1762651348471,-2571.0,0.00017058,2]
[393429922,1762651348494,-150.0,0.00017074,6]
[393429923,1762651348516,-500.0,0.00017096,2]
[393429924,1762651348539,-169.11,0.000171,2]
[393429925,1762651348562,-150.0,0.000171,2]
[393429926,1762651348583,-150.0,0.000171,2]
[393429927,1762651348605,-150.0,0.000171,2]
[393429928,1762651348627,-169.11,0.000171,2]
[393429929,1762651348648,-169.11,0.000171,2]
[393429930,1762651348672,-415.88,0.000171,2]
[393429931,1762651348696,-150.0,0.000171,2]
[393429932,1762651348719,-150.0,0.000171,2]
[393429933,1762651348741,-300.0,0.000171,2]
[393429934,1762651348764,-549.32,0.000171,2]
[393429935,1762651348787,-150.0,0.000171,2]
[393429936,1762651348809,-1205.69,0.000171,2]
[393429937,1762651348832,-150.0,0.000171,2]
[393429938,1762651348854,-1205.69,0.000171,2]
[393429939,1762651348875,-150.0,0.000171,2]
[393429940,1762651348897,-150.0,0.000171,2]
[393429941,1762651348919,-176.98,0.000171,2]
[393429942,1762651348944,-159.28,0.00017144,2]
[393429943,1762651348967,-290.50271738,0.00017162,2]
[393429944,1762651348988,-500.0,0.00017162,2]
[393429945,1762651349012,-150.0,0.00017162,2]
[393429946,1762651349034,-500.0,0.00017162,2]
[393429947,1762651349056,-500.0,0.00017162,2]
[393429948,1762651349077,-206.52719092,0.00017162,2]
[393429949,1762651349099,-500.0,0.00017162,2]
[393429950,1762651349121,-848.0,0.00017162,2]
[393429951,1762651349143,-500.0,0.00017162,2]
[393429952,1762651349165,-813.0,0.00017162,2]
[393429953,1762651349190,-171.0,0.00017172,2]
[393429954,1762651349213,-2571.0,0.00017175,2]
[393429955,1762651349236,-171.0,0.00017179,2]
[393429956,1762651349257,-471.99,0.00017189,2]
[393429957,1762651349280,-171.0,0.00017195,2]
[393429958,1762651349302,-2500.0,0.000172,2]
[393429959,1762651349325,-171.0,0.00017211,2]
[393429960,1762651349348,-150.0,0.00017211,6]
[393429961,1762651349373,-5888.0,0.00017213,2]
[393429962,1762651349396,-2571.0,0.00017223,2]
[393429963,1762651349418,-288.0,0.00017231,2]
[393429964,1762651349440,-5888.0,0.00017241,2]
[393429965,1762651349461,-584.0,0.0001726,2]
[393429966,1762651349484,-171.0,0.00017272,2]
[393429967,1762651349507,-166.66,0.00017279,2]
[393429968,1762651349530,-5000.0,0.00017299,2]
[393429969,1762651349555,-1000.0,0.00017299,2]
[393429970,1762651349579,-1000.0,0.00017299,2]
[393429972,1762651349602,-247.77697458,0.00017299,2]
[393429973,1762651349624,-150.0,0.00017299,2]
[393429974,1762651349648,-500.0,0.00017299,2]
[393429975,1762651349672,-500.0,0.00017299,2]
[393429976,1762651349695,-500.0,0.00017299,2]
[393429977,1762651349717,-848.0,0.00017299,2]
[393429978,1762651349739,-500.0,0.00017299,2]
[393429979,1762651349907,-813.0,0.00017299,2]
[393429980,1762651349935,-3233.4021382,0.00017299,2]
[393429981,1762651349958,-359.07,0.000173,2]
[393429982,1762651349982,-175.01,0.000173,2]
[393429983,1762651350006,-415.8,0.000173,2]
[393429984,1762651350028,-176.98,0.000173,2]
[393429985,1762651350052,-169.11,0.000173,2]
[393429986,1762651350079,-176.12,0.000173,2]
[393429987,1762651350106,-150.0,0.000173,2]
[393429988,1762651350131,-276.74521055,0.000173,2]
[393429989,1762651350155,-150.0,0.000173,2]
[393429990,1762651350180,-150.0,0.000173,2]
[393429991,1762651350202,-150.0,0.000173,2]
[393429992,1762651350225,-150.13185417,0.000173,2]
[393429993,1762651350248,-150.0,0.000173,2]
[393429994,1762651350271,-150.0,0.000173,2]
[393429995,1762651350294,-150.0,0.000173,2]
[393429996,1762651350321,-150.0,0.000173,2]
[393429997,1762651350343,-500.0,0.000173,2]
[393429998,1762651350365,-500.0,0.000173,2]
[393429999,1762651350386,-320.89611329,0.00017303,2]
[393430000,1762651350410,-3233.4021382,0.00017366,2]
[393430001,1762651350431,-500.09110135,0.00017373,2]
[393430002,1762651350453,-500.31492384,0.00017373,2]
[393430003,1762651350476,-500.0,0.00017373,2]
[393430004,1762651350497,-500.0,0.00017373,2]
[393430005,1762651350519,-500.0,0.00017373,2]
[393430006,1762651350541,-500.0,0.00017373,2]
[393430007,1762651350562,-500.0,0.00017373,2]
[393430008,1762651350586,-500.0,0.00017373,2]
[393430009,1762651350608,-500.7693364,0.00017373,2]
[393430010,1762651350630,-500.0,0.00017373,2]
[393430011,1762651350652,-500.4852538,0.00017373,2]
[393430012,1762651350675,-501.05164124,0.00017373,2]
[393430013,1762651350697,-500.0,0.00017373,2]
[393430014,1762651350719,-500.0,0.00017373,2]
[393430015,1762651350742,-500.0,0.00017373,2]
[393430016,1762651350765,-500.0,0.00017373,2]
[393430017,1762651350789,-500.0,0.00017373,2]
[393430018,1762651350815,-171.0,0.00017382,2]
[393430019,1762651350847,-1210.06,0.00017389,2]
[393430020,1762651350871,-1210.06,0.00017389,2]
[393430021,1762651350895,-1210.06,0.00017389,2]
[393430022,1762651350918,-1210.06,0.00017389,2]
[393430023,1762651350943,-1210.06,0.00017389,2]
[393430024,1762651350967,-163.36,0.00017389,2]
[393430025,1762651350990,-925.22415066,0.00017391,2]
[393430026,1762651351013,-187.76084178,0.00017391,2]
[393430027,1762651351036,-500.0,0.00017398,2]
[393430028,1762651351059,-499.5835925,0.00017398,2]
[393430029,1762651351081,-163.79809138,0.00017398,2]
[393430030,1762651351104,-372.30014514,0.00017398,2]
[393430031,1762651351127,-500.0,0.00017398,2]
[393430032,1762651351150,-500.0,0.00017398,2]
[393430033,1762651351174,-500.0,0.00017398,2]
[393430034,1762651351196,-215.80684719,0.00017398,2]
[393430035,1762651351218,-500.0,0.00017398,2]
[393430036,1762651351240,-264.2060553,0.00017398,2]
[393430037,1762651351264,-195.99346519,0.00017398,2]
[393430038,1762651351288,-225.86644764,0.00017398,2]
[393430039,1762651351312,-186.97968411,0.00017398,2]
[393430040,1762651351333,-500.0,0.00017398,2]
[393430041,1762651351356,-500.0,0.00017398,2]
[393430042,1762651351379,-500.0,0.00017398,2]
[393430043,1762651351401,-500.0,0.00017398,2]
[393430044,1762651351425,-500.0,0.00017398,2]
[393430045,1762651351447,-500.0,0.00017398,2]
[393430046,1762651351469,-500.0,0.00017398,2]
[393430047,1762651351491,-500.0,0.00017398,2]
[393430048,1762651351517,-500.0,0.00017398,2]
[393430049,1762651351539,-188.79992771,0.00017398,2]
[393430050,1762651351562,-500.0,0.00017398,2]
[393430051,1762651351587,-500.0,0.00017398,2]
[393430052,1762651351609,-500.0,0.00017398,2]
[393430053,1762651351632,-500.0,0.00017398,2]
[393430054,1762651351657,-500.0,0.00017398,2]
[393430055,1762651351680,-522.47521665,0.00017398,2]
[393430056,1762651351703,-500.0,0.00017398,2]
[393430057,1762651351725,-580.0728714,0.00017398,2]
[393430058,1762651351746,-500.0,0.00017398,2]
[393430059,1762651351770,-500.0,0.00017398,2]
[393430060,1762651351793,-500.0,0.00017398,2]
[393430061,1762651351815,-500.0,0.00017398,2]
[393430062,1762651351837,-500.0,0.00017398,2]
[393430063,1762651351858,-500.0,0.00017398,2]
[393430064,1762651351881,-1133.55606713,0.00017399,2]
[393430065,1762651351903,-1855.30164322,0.00017403,2]
[393430066,1762651351929,-3233.4021382,0.00017433,2]
[393430067,1762651351955,-283.44084848,0.00017436,2]
[393430068,1762651351979,-500.0,0.00017436,2]
[393430069,1762651352003,-500.0,0.00017436,2]
[393430070,1762651352027,-487.68179364,0.00017436,2]
[393430071,1762651352049,-848.0,0.00017436,2]
[393430072,1762651352073,-299.0215357,0.00017436,2]
[393430073,1762651352095,-813.0,0.00017436,2]
[393430074,1762651352117,-208.08234255,0.00017437,2]
[393430075,1762651352139,-150.0,0.00017437,2]
[393430076,1762651352161,-150.0,0.00017437,2]
[393430077,1762651352183,-150.0,0.00017437,2]
[393430078,1762651352204,-200.0,0.00017437,2]
[393430079,1762651352227,-150.0,0.00017437,2]
[393430080,1762651352248,-150.0,0.00017437,2]
[393430081,1762651352270,-500.0,0.00017437,2]
[393430082,1762651352291,-569.31106484,0.00017437,2]
[393430083,1762651352315,-5953.0883144,0.00017448,2]
[393430084,1762651352341,-171.0,0.00017464,2]
[393430085,1762651352364,-152.41348761,0.00017466,2]
[393430086,1762651352511,-501.29728882,0.00017473,2]
[393430087,1762651352540,-500.0,0.00017473,2]
[393430088,1762651352563,-500.0,0.00017473,2]
[393430089,1762651352590,-500.0,0.00017473,2]
[393430090,1762651352613,-500.0,0.00017473,2]
[393430091,1762651352634,-500.0,0.00017473,2]
[393430092,1762651352656,-231.42602229,0.00017473,2]
[393430093,1762651352678,-500.0,0.00017473,2]
[393430094,1762651352700,-500.0,0.00017473,2]
[393430095,1762651352723,-500.0,0.00017473,2]
[393430096,1762651352745,-500.0,0.00017473,2]
[393430097,1762651352768,-500.0,0.00017473,2]
[393430098,1762651352791,-500.0,0.00017473,2]
[393430099,1762651352815,-500.0,0.00017473,2]
[393430100,1762651352840,-500.0,0.00017473,2]
[393430101,1762651352865,-500.0,0.00017473,2]
[393430102,1762651352890,-500.0,0.00017473,2]
[393430103,1762651352916,-500.0,0.00017473,2]
[393430104,1762651352945,-567.21962,0.00017473,2]
[393430105,1762651352974,-500.0,0.0001749,2]
[393430106,1762651353002,-500.0,0.0001749,2]
[393430107,1762651353028,-500.0,0.0001749,2]
[393430108,1762651353052,-557.62488743,0.0001749,2]
[393430109,1762651353076,-500.0,0.0001749,2]
[393430110,1762651353100,-500.0,0.0001749,2]
[393430111,1762651353124,-500.0,0.0001749,2]
[393430112,1762651353147,-500.0,0.0001749,2]
[393430113,1762651353172,-500.0,0.0001749,2]
[393430114,1762651353195,-500.0,0.0001749,2]
[393430115,1762651353218,-500.0,0.0001749,2]
[393430116,1762651353242,-500.0,0.0001749,2]
[393430117,1762651353265,-607.03225849,0.0001749,2]
[393430118,1762651353288,-3348.0,0.00017491,2]
[393430119,1762651353311,-500.0,0.00017499,2]
[393430120,1762651353333,-500.0,0.00017499,2]
[393430121,1762651353356,-3233.4021382,0.00017499,2]
[393430122,1762651353378,-1021.0,0.000175,2]
[393430123,1762651353401,-2300.0,0.000175,6]
[393430124,1762651353425,-171.0,0.00017503,2]
[393430125,1762651353450,-171.0,0.00017505,2]
[393430126,1762651353472,-2789.0,0.00017531,2]
[393430127,1762651353494,-152.41348761,0.00017553,2]
[393430128,1762651353516,-171.0,0.00017559,2]
[393430129,1762651353538,-3233.4021382,0.00017566,2]
[393430130,1762651353560,-500.0,0.00017573,2]
[393430131,1762651353581,-500.0,0.00017573,2]
[393430132,1762651353604,-848.0,0.00017573,2]
[393430133,1762651353626,-813.0,0.00017573,2]
[393430134,1762651353649,-164.11,0.00017574,2]
[393430135,1762651353671,-196.23161218,0.00017574,2]
[393430136,1762651353692,-150.0,0.00017574,2]
[393430137,1762651353715,-150.0,0.00017574,2]
[393430138,1762651353737,-200.0,0.00017574,2]
[393430139,1762651353759,-150.0,0.00017574,2]
[393430140,1762651353781,-500.0,0.00017574,2]
[393430141,1762651353804,-1211.0,0.0001758,2]
[393430142,1762651353827,-171.0,0.00017598,2]
[393430143,1762651353849,-500.0,0.00017599,2]
[393430144,1762651353872,-500.0,0.00017599,2]
[393430145,1762651353895,-311.50346792,0.00017599,2]
[393430146,1762651353917,-500.0,0.00017599,2]
[393430147,1762651353944,-3100.0,0.000176,6]
[393430148,1762651353966,-322.79,0.00017609,2]
[393430149,1762651353988,-303.5,0.0001761,2]
[393430150,1762651354009,-500.0,0.00017613,2]
[393430151,1762651354032,-281.28203677,0.00017619,2]
[393430152,1762651354055,-3233.4021382,0.00017633,2]
[393430153,1762651354078,-152.41348761,0.0001764,2]
[393430154,1762651354101,-1133.55606711,0.0001765,2]
[393430155,1762651354124,-5888.0,0.00017663,2]
[393430156,1762651354148,-171.0,0.00017691,2]
[393430157,1762651354170,-3233.4021382,0.000177,2]
[393430158,1762651354192,-3900.0,0.000177,6]
[393430159,1762651354216,-1000.0,0.000177,2]
[393430160,1762651354238,-500.0,0.0001771,2]
[393430161,1762651354262,-500.0,0.0001771,2]
[393430162,1762651354284,-848.0,0.0001771,2]
[393430163,1762651354309,-813.0,0.0001771,2]
[393430164,1762651354332,-205.74245272,0.00017711,2]
[393430165,1762651354354,-150.0,0.00017711,2]
[393430166,1762651354377,-210.21129166,0.00017711,2]
[393430167,1762651354399,-500.0,0.00017711,2]
[393430168,1762651354421,-322.79,0.00017746,2]
[393430169,1762651354444,-303.5,0.00017747,2]
[393430170,1762651354467,-3233.4021382,0.00017766,2]
[393430171,1762651354490,-700.0,0.000178,6]
[393430172,1762651354511,-575.47,0.00017805,2]
[393430173,1762651354534,-3424.0,0.00017805,2]
[393430174,1762651354556,-1316.0,0.00017805,2]
[393430175,1762651354579,-607.0,0.00017805,2]
[393430176,1762651354601,-829.0,0.00017805,2]
[393430177,1762651354623,-1596.0,0.00017805,2]
[393430178,1762651354645,-875.403,0.00017805,2]
[393430179,1762651354669,-1273.0,0.00017805,2]
[393430180,1762651354690,-2142.0,0.00017805,2]
[393430181,1762651354712,-559.0,0.00017805,2]
[393430182,1762651354733,-6660.0,0.00017805,2]
[393430183,1762651354754,-6477.0,0.00017805,2]
[393430184,1762651354777,-1192.023,0.00017805,2]
[393430185,1762651354798,-906.0,0.00017805,2]
[393430186,1762651354820,-150.0,0.00017808,2]
[393430187,1762651354842,-320.89611321,0.00017814,2]
[393430188,1762651354865,-166.66,0.00017831,2]
[393430189,1762651354887,-4458.01614642,0.00017833,2]
[393430190,1762651355035,-3233.4021382,0.00017833,2]
[393430191,1762651355059,-500.0,0.00017847,2]
[393430192,1762651355081,-500.0,0.00017847,2]
[393430193,1762651355106,-848.0,0.00017847,2]
[393430194,1762651355131,-813.0,0.00017847,2]
[393430195,1762651355154,-150.0,0.00017848,2]
[393430196,1762651355177,-578.93489949,0.00017848,2]
[393430197,1762651355199,-460.0,0.0001785,2]
[393430198,1762651355223,-2000.0,0.00017856,2]
[393430199,1762651355247,-200.0,0.00017856,2]
[393430200,1762651355269,-322.79,0.00017883,2]
[393430201,1762651355291,-303.5,0.00017884,2]
[393430202,1762651355313,-700.0,0.000179,6]
[393430203,1762651355335,-4458.01614642,0.000179,2]
[393430204,1762651355357,-2103.80125194,0.000179,2]
[393430205,1762651355378,-385.89506106,0.000179,2]
[393430206,1762651355401,-3233.4021382,0.000179,2]
[393430207,1762651355423,-157.51415959,0.000179,3]
[393430208,1762651355444,-7829.28464188,0.000179,2]
[393430209,1762651355466,-1133.55606711,0.000179,2]
[393430210,1762651355488,-3098.0,0.00017913,2]
[393430211,1762651355509,-500.0,0.00017921,2]
[393430212,1762651355531,-503.00202269,0.00017921,2]
[393430213,1762651355553,-672.80486097,0.00017921,2]
[393430214,1762651355575,-1000.0,0.00017921,2]
[393430215,1762651355597,-649.28343882,0.00017921,2]
[393430216,1762651355620,-502.91924862,0.00017921,2]
[393430217,1762651355642,-235.35411794,0.00017921,2]
[393430218,1762651355665,-1000.0,0.00017921,2]
[393430219,1762651355691,-1211.0,0.00017961,2]
[393430220,1762651355714,-500.0,0.0001797,2]
[393430221,1762651355736,-500.0,0.0001797,2]
[393430222,1762651355759,-500.0,0.0001797,2]
[393430223,1762651355782,-500.0,0.0001797,2]
[393430224,1762651355804,-1000.0,0.0001797,2]
[393430225,1762651355826,-500.0,0.0001797,2]
[393430226,1762651355849,-1000.0,0.0001797,2]
[393430227,1762651355874,-500.0,0.0001797,2]
[393430228,1762651355897,-1000.0,0.0001797,2]
[393430229,1762651355920,-561.89297004,0.0001797,2]
[393430230,1762651355947,-1000.0,0.0001797,2]
[393430231,1762651355971,-1000.0,0.0001797,2]
[393430232,1762651355994,-1000.0,0.0001797,2]
[393430233,1762651356017,-1000.0,0.0001797,2]
[393430234,1762651356039,-1001.46347043,0.0001797,2]
[393430235,1762651356061,-400.0,0.00017973,2]
[393430236,1762651356084,-173.8777476,0.00017973,2]
[393430237,1762651356106,-500.0,0.00017984,2]
[393430238,1762651356130,-500.0,0.00017984,2]
[393430239,1762651356153,-848.0,0.00017984,2]
[393430240,1762651356177,-813.0,0.00017984,2]
[393430241,1762651356199,-236.55619015,0.00017985,2]
[393430242,1762651356221,-180.83529614,0.0001799,2]
[393430243,1762651356244,-163.36,0.0001799,2]
[393430244,1762651356266,-163.36,0.0001799,2]
[393430245,1762651356288,-151.0,0.00017997,2]
[393430246,1762651356310,-942.96105378,0.00017999,5]
[393430247,1762651356332,-300.0,0.00017999,2]
[393430248,1762651356358,-500.0,0.00017999,2]
[393430249,1762651356381,-500.0,0.00017999,2]
[393430250,1762651356403,-500.0,0.00017999,2]
[393430251,1762651356426,-500.0,0.00017999,2]
[393430252,1762651356448,-511.46926703,0.00017999,2]
[393430253,1762651356472,-500.0,0.00017999,2]
[393430254,1762651356495,-300.0,0.00017999,2]
[393430255,1762651356518,-460.0,0.00017999,2]
[393430256,1762651356541,-500.0,0.00017999,2]
[393430257,1762651356563,-500.0,0.00017999,2]
[393430258,1762651356586,-325.64626727,0.00017999,2]
[393430259,1762651356611,-312105.22186242,0.00018,2]
[393430260,1762651356941,-154.45231324,0.00017348,6]
[393430261,1762651357411,-152.41348761,0.00017726,2]
[393430262,1762651359183,-150.0,0.000168,6]
[393430263,1762651359220,-4167.808135,0.00017076,2]
[393430264,1762651359255,-152.41348761,0.00017813,2]
[393430265,1762651359290,-524.57194328,0.000179,2]
[393430266,1762651359337,-152.41348761,0.000179,2]
[393430267,1762651359978,-8157.43131141,0.00018,2]
[393430268,1762651359993,-10000.01,0.00018,2]
[393430269,1762651360007,-10000.01,0.00018,2]
[393430270,1762651360036,-10000.01,0.00018,2]
[393430271,1762651360066,-10000.01,0.00018,2]
[393430272,1762651360129,-10000.01,0.00018,2]
[393430273,1762651360143,-10000.01,0.00018,2]
[393430274,1762651360159,-10000.01,0.00018,2]
[393430275,1762651360186,-10000.01,0.00018,2]
[393430276,1762651360205,-10000.01,0.00018,2]
[393430277,1762651360249,-10000.01,0.00018,2]
[393430432,1762651376444,300.0,0.00012842,2]
[393430495,1762651393275,500.0,0.00039132,120]
[393430496,1762651393507,500.0,0.00039132,120]
[393430497,1762651393743,500.0,0.00039132,120]
[393430498,1762651394049,500.0,0.00039132,120]
[393430499,1762651394470,500.0,0.00039132,120]
[393430500,1762651394533,221.45915817,0.00039132,120]
[393430503,1762651418895,-300.0,0.00016745,2]
[393430504,1762651418916,-2500.0,0.00016746,2]
[393430505,1762651418937,-300.0,0.00016746,2]
[393430506,1762651418967,-1353.1,0.00016746,2]
[393430507,1762651418993,-1958.52480883,0.00016746,2]
[393430508,1762651419019,-1958.52480883,0.00016746,2]
[393430509,1762651419045,-1958.52480883,0.00016746,2]
[393430510,1762651419069,-1958.52480883,0.00016746,2]
[393430511,1762651419090,-250.0,0.00017,2]
[393430512,1762651419111,-462.80076468,0.0001702,2]
[393430513,1762651475668,9700.01,0.00016647,2]
[393430514,1762651475696,10000.01,0.00016647,2]
[393430515,1762651475719,10000.01,0.00016647,2]
[393430516,1762651475742,10000.01,0.00016647,2]
[393430517,1762651475766,10000.01,0.00016647,2]
[393430518,1762651475789,10000.01,0.00016647,2]
[393430519,1762651475812,10000.01,0.00016647,2]
[393430520,1762651475835,10000.01,0.00016647,2]
[393430521,1762651475858,10000.01,0.00016647,2]
[393430522,1762651475880,10000.01,0.00016647,2]
[393430523,1762651475903,10000.01,0.00016647,2]
[393430524,1762651475926,10000.01,0.00016647,2]
[393430525,1762651475955,154123.77442417,0.00016647,2]
[393430526,1762651475987,65278.499952,0.00016647,2]
[393430527,1762651501518,1200.0,0.00016646,2]
[393430528,1762651501558,300.0,0.00016646,2]
[393430529,1762651517053,163.17,0.00025056,120]
[393430530,1762651561336,8500.01,8e-05,2]
[393430531,1762651561359,5249.23001647,8e-05,2]
[393430532,1762651561561,300.0,0.00016646,2]
[393430533,1762651593439,500.0,0.00016646,2]
[393430534,1762651593474,616.54599314,0.00016646,2]
[393430535,1762651593662,156.35606888,0.00016646,2]
[393430536,1762651593693,616.54599314,0.00016646,2]
[393430537,1762651593728,203.39941652,0.00016646,2]
[393430538,1762651593757,500.0,0.00016646,2]
[393430539,1762651593788,616.54599314,0.00016646,2]
[393430540,1762651593820,616.54599314,0.00016646,2]
[393430541,1762651593852,500.0,0.00016646,2]
[393430542,1762651593888,124.84052557,0.00016646,2]
[393430543,1762651593918,491.70546757,0.00016646,2]
[393430544,1762651593946,275.46307219,0.00016646,2]
[393430545,1762651593979,616.54599314,0.00016646,2]
[393430546,1762651594201,616.54599314,0.00016646,2]
[393430547,1762651594237,616.54599314,0.00016646,2]
[393430548,1762651594272,616.54599314,0.00016646,2]
[393430549,1762651594303,616.54599314,0.00016646,2]
[393430550,1762651594333,616.54599314,0.00016646,2]
[393430551,1762651594363,616.54599314,0.00016646,2]
[393430552,1762651594397,616.54599314,0.00016646,2]
[393430553,1762651594429,616.54599314,0.00016646,2]
[393430554,1762651594463,616.54599314,0.00016646,2]
[393430555,1762651594503,616.54599314,0.00016646,2]
[393430556,1762651594535,616.54599314,0.00016646,2]
[393430557,1762651594566,616.54599314,0.00016646,2]
[393430558,1762651594596,616.54599314,0.00016646,2]
[393430559,1762651594628,601.19755628,0.00016646,2]
[393430560,1762651594655,15.34843686,0.00016646,2]
[393430561,1762651594691,616.54599314,0.00016646,2]
[393430562,1762651594723,616.54599314,0.00016646,2]
[393430563,1762651594753,616.54599314,0.00016646,2]
[393430564,1762651594788,616.54599314,0.00016646,2]
[393430565,1762651594817,616.54599314,0.00016646,2]
[393430566,1762651594847,616.54599314,0.00016646,2]
[393430567,1762651594877,616.54599314,0.00016646,2]
[393430568,1762651594907,616.54599314,0.00016646,2]
[393430569,1762651594937,616.54599314,0.00016646,2]
[393430570,1762651594967,616.54599314,0.00016646,2]
[393430571,1762651595000,616.54599314,0.00016646,2]
[393430572,1762651595039,616.54599314,0.00016646,2]
[393430573,1762651595074,616.54599314,0.00016646,2]
[393430574,1762651595107,616.54599314,0.00016646,2]
[393430575,1762651595138,616.54599314,0.00016646,2]
[393430576,1762651595169,616.54599314,0.00016646,2]
[393430577,1762651595200,119.9256729,0.00016646,2]
[393430578,1762651595225,496.62032024,0.00016646,2]
[393430579,1762651595257,616.54599314,0.00016646,2]
[393430580,1762651595294,616.54599314,0.00016646,2]
[393430581,1762651595325,616.54599314,0.00016646,2]
[393430582,1762651595357,616.54599314,0.00016646,2]
[393430583,1762651595389,616.54599314,0.00016646,2]
[393430584,1762651595421,616.54599314,0.00016646,2]
[393430585,1762651595452,616.54599314,0.00016646,2]
[393430586,1762651595482,616.54599314,0.00016646,2]
[393430587,1762651595512,616.54599314,0.00016646,2]
[393430588,1762651595545,616.54599314,0.00016646,2]
[393430589,1762651595576,616.54599314,0.00016646,2]